[Event "Early-Titled-Tuesday-Blitz-October-24-2023"]
[Site "Chess.com"]
[Date "2023.10.24"]
[Round "8"]
[White "Ykow"]
[Black "MKlose11"]
[Result "0-1"]
[WhiteElo "2514"]
[BlackElo "2635"]
[TimeControl "180+1"]
[EndTime "9:24:51 PDT"]
[Termination "MKlose11 won by resignation"]

1. e4 {[%clk 0:03:00.9]} 1... e6 {[%clk 0:02:57.9]} 2. d4 {[%clk 0:02:59.9]}
2... d5 {[%clk 0:02:57.7]} 3. exd5 {[%clk 0:03:00.8]} 3... exd5 {[%clk
0:02:57.7]} 4. Bd3 {[%clk 0:02:59]} 4... Nf6 {[%clk 0:02:57.7]} 5. Nf3 {[%clk
0:02:58.3]} 5... c5 {[%clk 0:02:58.4]} 6. c3 {[%clk 0:02:52.9]} 6... Be7 {[%clk
0:02:56.8]} 7. O-O {[%clk 0:02:52.1]} 7... O-O {[%clk 0:02:52]} 8. h3 {[%clk
0:02:51.5]} 8... Nc6 {[%clk 0:02:52]} 9. Re1 {[%clk 0:02:48.9]} 9... h6 {[%clk
0:02:49]} 10. Bf4 {[%clk 0:02:42.7]} 10... Be6 {[%clk 0:02:47.5]} 11. Nbd2
{[%clk 0:02:36.1]} 11... Qb6 {[%clk 0:02:41.9]} 12. Qb3 {[%clk 0:02:04.9]} 12...
Qxb3 {[%clk 0:02:25.9]} 13. axb3 {[%clk 0:02:05.8]} 13... cxd4 {[%clk
0:02:26.1]} 14. Nxd4 {[%clk 0:02:04.4]} 14... Nxd4 {[%clk 0:02:25.2]} 15. cxd4
{[%clk 0:02:05.3]} 15... a6 {[%clk 0:02:23.6]} 16. Nf3 {[%clk 0:02:04.4]} 16...
Rfc8 {[%clk 0:02:21.7]} 17. Rec1 {[%clk 0:02:03.9]} 17... Ne4 {[%clk 0:02:11.8]}
18. Nd2 {[%clk 0:01:57.1]} 18... Bd6 {[%clk 0:01:39.6]} 19. Be3 {[%clk
0:01:40.3]} 19... f5 {[%clk 0:01:27.9]} 20. Nxe4 {[%clk 0:01:38.6]} 20... fxe4
{[%clk 0:01:25]} 21. Be2 {[%clk 0:01:37.9]} 21... Kf7 {[%clk 0:01:21.2]} 22. f3
{[%clk 0:01:36.7]} 22... Rxc1+ {[%clk 0:01:09.3]} 23. Rxc1 {[%clk 0:01:36.1]}
23... Rc8 {[%clk 0:01:10.2]} 24. Rxc8 {[%clk 0:01:21.5]} 24... Bxc8 {[%clk
0:01:11.1]} 25. Kf2 {[%clk 0:01:19.2]} 25... Bf5 {[%clk 0:01:08]} 26. g4 {[%clk
0:01:18.9]} 26... Bh7 {[%clk 0:01:07.4]} 27. f4 {[%clk 0:01:18.6]} 27... Ke7
{[%clk 0:00:57]} 28. h4 {[%clk 0:01:17.9]} 28... Bg8 {[%clk 0:00:55.5]} 29. Bd2
{[%clk 0:01:16]} 29... Be6 {[%clk 0:00:53.9]} 30. h5 {[%clk 0:01:14.3]} 30...
Bd7 {[%clk 0:00:52.5]} 31. Ke3 {[%clk 0:01:12.6]} 31... Be6 {[%clk 0:00:39.3]}
32. Be1 {[%clk 0:01:11.6]} 32... Kf7 {[%clk 0:00:35.2]} 33. Bh4 {[%clk
0:01:10.7]} 33... Bb4 {[%clk 0:00:32.6]} 34. g5 {[%clk 0:01:07.4]} 34... Bf5
{[%clk 0:00:26.5]} 35. Bf1 {[%clk 0:00:58]} 35... Ba5 {[%clk 0:00:24.4]} 36. Be2
{[%clk 0:00:57.6]} 36... Bb4 {[%clk 0:00:24.4]} 37. Bg3 {[%clk 0:00:55.7]} 37...
Ke6 {[%clk 0:00:23.7]} 38. Bh4 {[%clk 0:00:55.1]} 38... Be7 {[%clk 0:00:20.6]}
39. Bd1 {[%clk 0:00:54.8]} 39... Bd6 {[%clk 0:00:20.9]} 40. Be1 {[%clk 0:00:53]}
40... Bh3 {[%clk 0:00:20.9]} 41. b4 {[%clk 0:00:51.8]} 41... Kf5 {[%clk
0:00:21.2]} 42. Bb3 {[%clk 0:00:47.7]} 42... Bxf4+ {[%clk 0:00:20.8]} 43. Kf2
{[%clk 0:00:48]} 43... Ke6 {[%clk 0:00:20.4]} 44. gxh6 {[%clk 0:00:47.6]} 44...
gxh6 {[%clk 0:00:21.3]} 0-1

[Event "Early-Titled-Tuesday-Blitz-October-24-2023"]
[Site "Chess.com"]
[Date "2023.10.24"]
[Round "8"]
[White "Akylbek2021"]
[Black "Cheer_Down"]
[Result "0-1"]
[WhiteElo "2252"]
[BlackElo "2421"]
[TimeControl "180+1"]
[EndTime "9:24:52 PDT"]
[Termination "Cheer_Down won on time"]

1. e4 {[%clk 0:03:00.9]} 1... c5 {[%clk 0:02:53.7]} 2. Nc3 {[%clk 0:03:00.6]}
2... d6 {[%clk 0:02:53.4]} 3. g3 {[%clk 0:02:57.7]} 3... Nc6 {[%clk 0:02:51.4]}
4. Bg2 {[%clk 0:02:58.1]} 4... g6 {[%clk 0:02:51.7]} 5. Nge2 {[%clk 0:02:58.2]}
5... Bg7 {[%clk 0:02:52]} 6. d3 {[%clk 0:02:58.8]} 6... e5 {[%clk 0:02:51.9]} 7.
O-O {[%clk 0:02:58.9]} 7... Nge7 {[%clk 0:02:49.5]} 8. f4 {[%clk 0:02:59]} 8...
O-O {[%clk 0:02:46.3]} 9. h3 {[%clk 0:02:55.3]} 9... f5 {[%clk 0:02:34.7]} 10.
Be3 {[%clk 0:02:52.2]} 10... Nd4 {[%clk 0:02:34.7]} 11. Nd5 {[%clk 0:02:47.2]}
11... Nxd5 {[%clk 0:02:32.3]} 12. exd5 {[%clk 0:02:47.1]} 12... Nxe2+ {[%clk
0:02:28.7]} 13. Qxe2 {[%clk 0:02:47.3]} 13... exf4 {[%clk 0:02:28.9]} 14. Bxf4
{[%clk 0:02:45.3]} 14... Bxb2 {[%clk 0:02:28.9]} 15. Rab1 {[%clk 0:02:43.2]}
15... Bd4+ {[%clk 0:02:27.4]} 16. Kh2 {[%clk 0:02:43.8]} 16... b6 {[%clk
0:02:23.4]} 17. Rfe1 {[%clk 0:02:35.7]} 17... a6 {[%clk 0:02:19]} 18. Bh6 {[%clk
0:02:21.6]} 18... Bg7 {[%clk 0:02:16.5]} 19. Bf4 {[%clk 0:02:13.6]} 19... Ra7
{[%clk 0:02:15.2]} 20. h4 {[%clk 0:02:03.6]} 20... b5 {[%clk 0:02:13.8]} 21. c4
{[%clk 0:01:38.5]} 21... b4 {[%clk 0:02:11]} 22. a3 {[%clk 0:01:32.7]} 22... a5
{[%clk 0:02:10.7]} 23. h5 {[%clk 0:01:24.3]} 23... g5 {[%clk 0:02:07.6]} 24. Bc1
{[%clk 0:01:21.3]} 24... h6 {[%clk 0:02:05.3]} 25. Bb2 {[%clk 0:01:14.8]} 25...
Bxb2 {[%clk 0:01:55.7]} 26. Qxb2 {[%clk 0:01:12.4]} 26... Re7 {[%clk 0:01:53.5]}
27. axb4 {[%clk 0:01:07]} 27... axb4 {[%clk 0:01:52.6]} 28. d4 {[%clk
0:01:05.8]} 28... Rfe8 {[%clk 0:01:44.3]} 29. Rxe7 {[%clk 0:01:04.4]} 29... Qxe7
{[%clk 0:01:44.3]} 30. dxc5 {[%clk 0:01:05]} 30... dxc5 {[%clk 0:01:45]} 31. Ra1
{[%clk 0:01:01.7]} 31... f4 {[%clk 0:01:42.9]} 32. Qf2 {[%clk 0:00:42.9]} 32...
Qe3 {[%clk 0:01:40.9]} 33. Qxe3 {[%clk 0:00:36]} 33... fxe3 {[%clk 0:01:40.8]}
34. Kg1 {[%clk 0:00:21.2]} 34... Bg4 {[%clk 0:01:39.5]} 35. Kf1 {[%clk
0:00:19.3]} 35... b3 {[%clk 0:01:34.2]} 36. d6 {[%clk 0:00:18.8]} 36... Kg7
{[%clk 0:01:23.7]} 37. Ra6 {[%clk 0:00:08.4]} 37... Rb8 {[%clk 0:01:20.6]} 38.
d7 {[%clk 0:00:02.5]} 38... b2 {[%clk 0:01:19.3]} 39. Be4 {[%clk 0:00:02.9]}
39... b1=Q+ {[%clk 0:01:18.4]} 40. Bxb1 {[%clk 0:00:03.1]} 40... Rxb1+ {[%clk
0:01:19.3]} 41. Kg2 {[%clk 0:00:03.5]} 41... Bxd7 {[%clk 0:01:19.8]} 42. Rd6
{[%clk 0:00:01.6]} 42... Rb7 {[%clk 0:01:19.2]} 43. Kf3 {[%clk 0:00:01.6]} 43...
Be8 {[%clk 0:01:16.4]} 44. Kxe3 {[%clk 0:00:01.7]} 44... Bxh5 {[%clk 0:01:16.6]}
45. Rc6 {[%clk 0:00:01.8]} 45... Re7+ {[%clk 0:01:15]} 46. Kd3 {[%clk 0:00:02]}
46... Re5 {[%clk 0:01:15.3]} 47. Rc7+ {[%clk 0:00:01.5]} 47... Bf7 {[%clk
0:01:15.5]} 0-1

[Event "Early-Titled-Tuesday-Blitz-October-24-2023"]
[Site "Chess.com"]
[Date "2023.10.24"]
[Round "8"]
[White "gau248"]
[Black "Bilan_Danila"]
[Result "1-0"]
[WhiteElo "2600"]
[BlackElo "2420"]
[TimeControl "180+1"]
[EndTime "9:24:53 PDT"]
[Termination "gau248 won by checkmate"]

1. d4 {[%clk 0:03:00.9]} 1... d5 {[%clk 0:02:56.1]} 2. c4 {[%clk 0:02:58.7]}
2... c6 {[%clk 0:02:55.9]} 3. Nf3 {[%clk 0:02:58]} 3... Nf6 {[%clk 0:02:56.4]}
4. e3 {[%clk 0:02:55.2]} 4... e6 {[%clk 0:02:56.8]} 5. Be2 {[%clk 0:02:53.9]}
5... Nbd7 {[%clk 0:02:52.6]} 6. O-O {[%clk 0:02:54.2]} 6... Bd6 {[%clk 0:02:53]}
7. Qc2 {[%clk 0:02:50.5]} 7... Ne4 {[%clk 0:02:39.1]} 8. Nbd2 {[%clk 0:02:48.9]}
8... f5 {[%clk 0:02:38.4]} 9. c5 {[%clk 0:02:49]} 9... Bc7 {[%clk 0:02:36.2]}
10. b4 {[%clk 0:02:49.6]} 10... a6 {[%clk 0:02:32.8]} 11. a4 {[%clk 0:02:49.5]}
11... O-O {[%clk 0:02:32.8]} 12. Ne1 {[%clk 0:02:46.1]} 12... e5 {[%clk
0:02:04.7]} 13. Bb2 {[%clk 0:02:43.9]} 13... Rf6 {[%clk 0:01:58.5]} 14. g3
{[%clk 0:02:39.8]} 14... Rh6 {[%clk 0:01:32.5]} 15. Ng2 {[%clk 0:02:37.7]} 15...
exd4 {[%clk 0:01:26.5]} 16. Bxd4 {[%clk 0:02:38.6]} 16... Ndf6 {[%clk 0:01:21]}
17. Nf3 {[%clk 0:02:21]} 17... Ng4 {[%clk 0:01:13.4]} 18. b5 {[%clk 0:02:11]}
18... Qe8 {[%clk 0:00:56.7]} 19. bxc6 {[%clk 0:02:06.1]} 19... bxc6 {[%clk
0:00:55.5]} 20. h4 {[%clk 0:02:04.1]} 20... Qg6 {[%clk 0:00:44.3]} 21. Rab1
{[%clk 0:01:55.7]} 21... Ngxf2 {[%clk 0:00:38.2]} 22. Rxf2 {[%clk 0:01:50.6]}
22... Nxf2 {[%clk 0:00:36.3]} 23. Kxf2 {[%clk 0:01:42.6]} 23... Qxg3+ {[%clk
0:00:36.4]} 24. Kf1 {[%clk 0:01:21.6]} 24... f4 {[%clk 0:00:36.1]} 25. exf4
{[%clk 0:01:15.5]} 25... Bh3 {[%clk 0:00:35.2]} 26. Bd1 {[%clk 0:01:16]} 26...
Bxf4 {[%clk 0:00:22.1]} 27. Qf2 {[%clk 0:01:13]} 27... Qg6 {[%clk 0:00:19.1]}
28. Bc2 {[%clk 0:01:01.5]} 28... Qf7 {[%clk 0:00:10.7]} 29. Ng5 {[%clk
0:00:51.8]} 29... Bxg2+ {[%clk 0:00:06.3]} 30. Kxg2 {[%clk 0:00:49.4]} 30...
Bxg5 {[%clk 0:00:06.8]} 31. Qxf7+ {[%clk 0:00:49.7]} 31... Kxf7 {[%clk
0:00:07.1]} 32. hxg5 {[%clk 0:00:49.8]} 32... Rh5 {[%clk 0:00:06.1]} 33. Rb7+
{[%clk 0:00:48]} 33... Ke6 {[%clk 0:00:06.7]} 34. Rxg7 {[%clk 0:00:48.1]} 34...
Rb8 {[%clk 0:00:04.6]} 35. Bd1 {[%clk 0:00:47.7]} 35... Rh4 {[%clk 0:00:03.7]}
36. Bf6 {[%clk 0:00:44.5]} 36... Rb1 {[%clk 0:00:03]} 37. Kg3 {[%clk 0:00:42.4]}
37... Rh1 {[%clk 0:00:02.3]} 38. Bg4# {[%clk 0:00:42.3]} 1-0

[Event "Early-Titled-Tuesday-Blitz-October-24-2023"]
[Site "Chess.com"]
[Date "2023.10.24"]
[Round "8"]
[White "Aleksandar-Topalov"]
[Black "GlacierGambit"]
[Result "1-0"]
[WhiteElo "2380"]
[BlackElo "2112"]
[TimeControl "180+1"]
[EndTime "9:24:55 PDT"]
[Termination "Aleksandar-Topalov won on time"]

1. b3 {[%clk 0:03:00.9]} 1... e6 {[%clk 0:03:00.9]} 2. Bb2 {[%clk 0:03:00.5]}
2... a5 {[%clk 0:03:00.5]} 3. a3 {[%clk 0:02:59.7]} 3... Nf6 {[%clk 0:03:00.7]}
4. e3 {[%clk 0:02:56.8]} 4... d5 {[%clk 0:03:00.9]} 5. Nf3 {[%clk 0:02:55.8]}
5... b6 {[%clk 0:03:00]} 6. d4 {[%clk 0:02:55.1]} 6... Be7 {[%clk 0:02:56.7]} 7.
Nbd2 {[%clk 0:02:54.8]} 7... Ba6 {[%clk 0:02:56.7]} 8. c4 {[%clk 0:02:54.2]}
8... O-O {[%clk 0:02:56.2]} 9. Bd3 {[%clk 0:02:54.3]} 9... Nbd7 {[%clk 0:02:55]}
10. O-O {[%clk 0:02:54.1]} 10... c6 {[%clk 0:02:55]} 11. Qe2 {[%clk 0:02:52.5]}
11... Qb8 {[%clk 0:02:51.7]} 12. Rfc1 {[%clk 0:02:50.8]} 12... Rc8 {[%clk
0:02:49.9]} 13. e4 {[%clk 0:02:49.1]} 13... h6 {[%clk 0:02:37.9]} 14. h3 {[%clk
0:02:43.4]} 14... a4 {[%clk 0:02:16.9]} 15. b4 {[%clk 0:02:40.8]} 15... c5
{[%clk 0:02:07.5]} 16. dxc5 {[%clk 0:02:31.8]} 16... bxc5 {[%clk 0:02:02.9]} 17.
exd5 {[%clk 0:02:25.8]} 17... exd5 {[%clk 0:01:49.8]} 18. Qxe7 {[%clk
0:02:23.8]} 18... Re8 {[%clk 0:01:49]} 19. Bxf6 {[%clk 0:02:19]} 19... Rxe7
{[%clk 0:01:27.8]} 20. Bxe7 {[%clk 0:02:19.1]} 20... Qf4 {[%clk 0:01:09.9]} 21.
bxc5 {[%clk 0:02:10.8]} 21... dxc4 {[%clk 0:01:02.6]} 22. Bxc4 {[%clk 0:02:03]}
22... Bxc4 {[%clk 0:00:59.9]} 23. Rxc4 {[%clk 0:01:57.5]} 23... Qf5 {[%clk
0:00:55.7]} 24. c6 {[%clk 0:01:41.3]} 24... Nb6 {[%clk 0:00:54.6]} 25. Rcc1
{[%clk 0:01:36.4]} 25... Qe6 {[%clk 0:00:48.9]} 26. Bb4 {[%clk 0:01:33.1]} 26...
Nd5 {[%clk 0:00:40.3]} 27. Nd4 {[%clk 0:01:11.4]} 27... Qf6 {[%clk 0:00:27.8]}
28. N2f3 {[%clk 0:01:10.9]} 28... Nf4 {[%clk 0:00:24.4]} 29. Kh2 {[%clk
0:01:06.5]} 29... Rc8 {[%clk 0:00:13.6]} 30. g3 {[%clk 0:01:05.7]} 30... Ne6
{[%clk 0:00:09.9]} 31. Bc3 {[%clk 0:01:04.6]} 31... Qg6 {[%clk 0:00:05.9]} 32.
Nxe6 {[%clk 0:01:01.6]} 32... Qxe6 {[%clk 0:00:05.3]} 33. Nd4 {[%clk 0:01:01.5]}
33... Qe4 {[%clk 0:00:04.7]} 34. Re1 {[%clk 0:00:50.3]} 34... Qd5 {[%clk
0:00:04.6]} 35. Rad1 {[%clk 0:00:45.5]} 35... h5 {[%clk 0:00:03.6]} 36. h4
{[%clk 0:00:45.1]} 36... Qc4 {[%clk 0:00:03.4]} 37. Bb4 {[%clk 0:00:43.2]} 1-0

[Event "Early-Titled-Tuesday-Blitz-October-24-2023"]
[Site "Chess.com"]
[Date "2023.10.24"]
[Round "8"]
[White "Aygehovit1992"]
[Black "JoliyRoger"]
[Result "1-0"]
[WhiteElo "2664"]
[BlackElo "2475"]
[TimeControl "180+1"]
[EndTime "9:25:05 PDT"]
[Termination "Aygehovit1992 won on time"]

1. e4 {[%clk 0:02:56.2]} 1... c6 {[%clk 0:02:59.5]} 2. Nc3 {[%clk 0:02:55.6]}
2... d5 {[%clk 0:03:00.4]} 3. Nf3 {[%clk 0:02:56.3]} 3... Nf6 {[%clk 0:03:00.7]}
4. e5 {[%clk 0:02:55]} 4... Ne4 {[%clk 0:03:01.4]} 5. d4 {[%clk 0:02:54.1]} 5...
Nxc3 {[%clk 0:02:59.1]} 6. bxc3 {[%clk 0:02:53.8]} 6... Bg4 {[%clk 0:02:49]} 7.
c4 {[%clk 0:02:50]} 7... e6 {[%clk 0:02:48.8]} 8. c3 {[%clk 0:02:44]} 8... Nd7
{[%clk 0:02:40.6]} 9. a4 {[%clk 0:02:40]} 9... Be7 {[%clk 0:02:29.6]} 10. h3
{[%clk 0:02:38.8]} 10... Bh5 {[%clk 0:02:25.1]} 11. Bd3 {[%clk 0:02:30.1]} 11...
Bg6 {[%clk 0:02:21.7]} 12. a5 {[%clk 0:02:28.7]} 12... O-O {[%clk 0:02:20.3]}
13. O-O {[%clk 0:02:28.2]} 13... dxc4 {[%clk 0:02:03.9]} 14. Bxc4 {[%clk
0:02:27.3]} 14... b5 {[%clk 0:01:53]} 15. Bb3 {[%clk 0:02:12.4]} 15... a6 {[%clk
0:01:53.1]} 16. c4 {[%clk 0:02:05.9]} 16... bxc4 {[%clk 0:01:13.1]} 17. Bxc4
{[%clk 0:02:04.8]} 17... Be4 {[%clk 0:01:04.2]} 18. Ba3 {[%clk 0:01:49.8]} 18...
Bd5 {[%clk 0:00:59.3]} 19. Bxd5 {[%clk 0:01:38.4]} 19... cxd5 {[%clk 0:00:57.1]}
20. Qd3 {[%clk 0:01:37.9]} 20... Bxa3 {[%clk 0:00:26.2]} 21. Rxa3 {[%clk
0:01:37.1]} 21... f6 {[%clk 0:00:22.1]} 22. Rc1 {[%clk 0:01:12]} 22... fxe5
{[%clk 0:00:15.3]} 23. dxe5 {[%clk 0:01:12.9]} 23... Rc8 {[%clk 0:00:15.9]} 24.
Rac3 {[%clk 0:00:52.7]} 24... Rxc3 {[%clk 0:00:15.6]} 25. Rxc3 {[%clk
0:00:53.6]} 25... Qxa5 {[%clk 0:00:10.8]} 26. Ng5 {[%clk 0:00:53.3]} 26... g6
{[%clk 0:00:08.4]} 27. Nxe6 {[%clk 0:00:53]} 27... Re8 {[%clk 0:00:02.6]} 28.
Nf4 {[%clk 0:00:28.1]} 28... Nxe5 {[%clk 0:00:02.7]} 29. Qd4 {[%clk 0:00:18.1]}
29... Qa1+ {[%clk 0:00:01.1]} 30. Kh2 {[%clk 0:00:17.5]} 1-0

[Event "Early-Titled-Tuesday-Blitz-October-24-2023"]
[Site "Chess.com"]
[Date "2023.10.24"]
[Round "8"]
[White "Chernov_Mikhail"]
[Black "m_ezat"]
[Result "0-1"]
[WhiteElo "2427"]
[BlackElo "2603"]
[TimeControl "180+1"]
[EndTime "9:25:06 PDT"]
[Termination "m_ezat won by resignation"]

1. d4 {[%clk 0:02:59.7]} 1... Nf6 {[%clk 0:02:59.2]} 2. Nc3 {[%clk 0:02:58.5]}
2... d5 {[%clk 0:02:58.9]} 3. Bf4 {[%clk 0:02:58.1]} 3... c5 {[%clk 0:02:59.1]}
4. e3 {[%clk 0:02:46.1]} 4... cxd4 {[%clk 0:02:58.3]} 5. exd4 {[%clk 0:02:44.9]}
5... a6 {[%clk 0:02:58.6]} 6. Nf3 {[%clk 0:02:41.2]} 6... Bg4 {[%clk 0:02:56.4]}
7. Be2 {[%clk 0:02:33.8]} 7... Bxf3 {[%clk 0:02:38.5]} 8. Bxf3 {[%clk
0:02:34.7]} 8... Nc6 {[%clk 0:02:38.4]} 9. O-O {[%clk 0:02:31.9]} 9... e6 {[%clk
0:02:38.5]} 10. Ne2 {[%clk 0:02:19.6]} 10... Bd6 {[%clk 0:02:33]} 11. c3 {[%clk
0:02:17.7]} 11... Bxf4 {[%clk 0:02:30.8]} 12. Nxf4 {[%clk 0:02:18.6]} 12... O-O
{[%clk 0:02:25.7]} 13. Nd3 {[%clk 0:02:17.1]} 13... Nd7 {[%clk 0:02:23.3]} 14.
Re1 {[%clk 0:02:14.1]} 14... b5 {[%clk 0:02:22.6]} 15. a4 {[%clk 0:02:08.5]}
15... Qb6 {[%clk 0:02:19.7]} 16. axb5 {[%clk 0:02:06.2]} 16... axb5 {[%clk
0:02:19.2]} 17. b4 {[%clk 0:01:45.1]} 17... Qc7 {[%clk 0:02:16.8]} 18. Nc5
{[%clk 0:01:44.1]} 18... Nxc5 {[%clk 0:02:15.5]} 19. bxc5 {[%clk 0:01:45]} 19...
b4 {[%clk 0:02:15.4]} 20. cxb4 {[%clk 0:01:35.6]} 20... Nxb4 {[%clk 0:02:15.4]}
21. Qb3 {[%clk 0:01:28.3]} 21... Nc6 {[%clk 0:02:15]} 22. Qc3 {[%clk 0:01:19]}
22... Rxa1 {[%clk 0:02:10.5]} 23. Rxa1 {[%clk 0:01:19.9]} 23... Qf4 {[%clk
0:02:10.3]} 24. Rd1 {[%clk 0:01:14.8]} 24... Rb8 {[%clk 0:02:09.1]} 25. g3
{[%clk 0:01:14.7]} 25... Qf6 {[%clk 0:02:07.6]} 26. Kg2 {[%clk 0:01:11.8]} 26...
g6 {[%clk 0:02:06.1]} 27. Be2 {[%clk 0:00:49.6]} 27... Rb4 {[%clk 0:01:56.8]}
28. Bf1 {[%clk 0:00:33.4]} 28... Rxd4 {[%clk 0:01:54.1]} 29. Bb5 {[%clk
0:00:23.8]} 29... Kg7 {[%clk 0:01:52.1]} 30. Rxd4 {[%clk 0:00:12.4]} 30... Qxd4
{[%clk 0:01:47.3]} 31. Qc2 {[%clk 0:00:08.6]} 31... Nb4 {[%clk 0:01:38.2]} 32.
Qc1 {[%clk 0:00:05.9]} 32... Na2 {[%clk 0:01:28.7]} 33. Qc2 {[%clk 0:00:05.7]}
33... Nc3 {[%clk 0:01:26.2]} 34. Bf1 {[%clk 0:00:03.1]} 34... Qxc5 {[%clk
0:01:25.5]} 35. Qd3 {[%clk 0:00:03]} 35... d4 {[%clk 0:01:25.4]} 36. f4 {[%clk
0:00:02.5]} 36... Nd5 {[%clk 0:01:22.9]} 37. Be2 {[%clk 0:00:02.5]} 37... Ne3+
{[%clk 0:01:22.9]} 38. Kf2 {[%clk 0:00:02.9]} 38... h5 {[%clk 0:01:19.9]} 39.
Qe4 {[%clk 0:00:02.9]} 39... Ng4+ {[%clk 0:01:12.9]} 40. Bxg4 {[%clk 0:00:02.6]}
40... hxg4 {[%clk 0:01:11.3]} 41. Qd3 {[%clk 0:00:03.1]} 41... Qd5 {[%clk
0:01:06.4]} 42. Kf1 {[%clk 0:00:02.4]} 42... Qh1+ {[%clk 0:01:05.1]} 43. Kf2
{[%clk 0:00:02.5]} 43... Qxh2+ {[%clk 0:01:05.4]} 44. Kf1 {[%clk 0:00:03.4]}
44... Qh1+ {[%clk 0:01:05.1]} 45. Kf2 {[%clk 0:00:03.7]} 45... Qf3+ {[%clk
0:01:02.4]} 46. Qxf3 {[%clk 0:00:03.6]} 46... gxf3 {[%clk 0:01:03.3]} 47. Kxf3
{[%clk 0:00:04.5]} 47... f5 {[%clk 0:01:01.3]} 48. Ke2 {[%clk 0:00:04.6]} 48...
Kf6 {[%clk 0:01:00.3]} 49. Kd3 {[%clk 0:00:05.5]} 49... e5 {[%clk 0:01:01.1]}
50. fxe5+ {[%clk 0:00:05.6]} 50... Kxe5 {[%clk 0:01:01.7]} 51. Ke2 {[%clk
0:00:06.4]} 51... Ke4 {[%clk 0:01:01.9]} 52. Kf2 {[%clk 0:00:07]} 52... g5
{[%clk 0:01:02.2]} 0-1

[Event "Early-Titled-Tuesday-Blitz-October-24-2023"]
[Site "Chess.com"]
[Date "2023.10.24"]
[Round "8"]
[White "FREDERICKtheMATE"]
[Black "verrbaa"]
[Result "1-0"]
[WhiteElo "2593"]
[BlackElo "2441"]
[TimeControl "180+1"]
[EndTime "9:25:08 PDT"]
[Termination "FREDERICKtheMATE won by resignation"]

1. Nf3 {[%clk 0:03:00.9]} 1... Nf6 {[%clk 0:02:58.6]} 2. g3 {[%clk 0:03:00.8]}
2... g6 {[%clk 0:02:37.6]} 3. Bg2 {[%clk 0:03:00.7]} 3... Bg7 {[%clk 0:02:38]}
4. O-O {[%clk 0:03:00.8]} 4... O-O {[%clk 0:02:38.3]} 5. b3 {[%clk 0:02:59.5]}
5... c5 {[%clk 0:02:33.2]} 6. Bb2 {[%clk 0:02:57.8]} 6... Nc6 {[%clk 0:02:33.4]}
7. c4 {[%clk 0:02:57.9]} 7... d6 {[%clk 0:02:17.4]} 8. d4 {[%clk 0:02:56.5]}
8... cxd4 {[%clk 0:02:17.4]} 9. Nxd4 {[%clk 0:02:57.4]} 9... Bd7 {[%clk
0:02:17.9]} 10. Nc3 {[%clk 0:02:55.7]} 10... Qa5 {[%clk 0:02:11.3]} 11. Rc1
{[%clk 0:02:48.4]} 11... a6 {[%clk 0:01:53.7]} 12. e3 {[%clk 0:02:43.9]} 12...
Rac8 {[%clk 0:01:52.4]} 13. a3 {[%clk 0:02:41.6]} 13... Nxd4 {[%clk 0:01:30.2]}
14. exd4 {[%clk 0:02:40.2]} 14... b5 {[%clk 0:01:30.5]} 15. b4 {[%clk 0:02:40]}
15... Qb6 {[%clk 0:01:27.3]} 16. c5 {[%clk 0:02:38.5]} 16... dxc5 {[%clk
0:01:27.3]} 17. dxc5 {[%clk 0:02:39.4]} 17... Qc7 {[%clk 0:01:27.5]} 18. Nd5
{[%clk 0:02:35.9]} 18... Nxd5 {[%clk 0:01:27.4]} 19. Bxg7 {[%clk 0:02:35.9]}
19... Kxg7 {[%clk 0:01:27.6]} 20. Qxd5 {[%clk 0:02:36]} 20... Be6 {[%clk
0:01:26.4]} 21. Qd4+ {[%clk 0:02:35.3]} 21... f6 {[%clk 0:01:26.1]} 22. Rfe1
{[%clk 0:02:33.5]} 22... Bf7 {[%clk 0:01:25.9]} 23. Qe3 {[%clk 0:02:32.3]} 23...
e5 {[%clk 0:01:25.2]} 24. Red1 {[%clk 0:02:30.1]} 24... Rfd8 {[%clk 0:01:22.8]}
25. c6 {[%clk 0:02:28.1]} 25... Be8 {[%clk 0:01:15.6]} 26. Qc5 {[%clk
0:02:27.4]} 26... f5 {[%clk 0:00:52.8]} 27. h4 {[%clk 0:02:26.6]} 27... e4
{[%clk 0:00:51.1]} 28. Qc3+ {[%clk 0:02:19.7]} 28... Kg8 {[%clk 0:00:50.7]} 29.
Rxd8 {[%clk 0:02:19.2]} 29... Rxd8 {[%clk 0:00:50.4]} 30. f3 {[%clk 0:02:19.2]}
30... Bxc6 {[%clk 0:00:29]} 31. fxe4 {[%clk 0:02:07]} 31... Qb6+ {[%clk
0:00:29]} 32. Kh2 {[%clk 0:02:06]} 32... Bxe4 {[%clk 0:00:28.9]} 33. Bxe4 {[%clk
0:01:58.5]} 33... fxe4 {[%clk 0:00:29.8]} 34. Rf1 {[%clk 0:01:54.6]} 34... Re8
{[%clk 0:00:28.8]} 35. Qb3+ {[%clk 0:01:49.2]} 35... Qe6 {[%clk 0:00:28.4]} 36.
Qe3 {[%clk 0:01:45.6]} 36... Rf8 {[%clk 0:00:28.7]} 37. Rxf8+ {[%clk 0:01:43]}
37... Kxf8 {[%clk 0:00:29.6]} 38. Kg2 {[%clk 0:01:38]} 38... Qe5 {[%clk
0:00:20.6]} 39. Kf2 {[%clk 0:01:34.7]} 39... Kg7 {[%clk 0:00:20.5]} 40. Qa7+
{[%clk 0:01:32]} 40... Kh6 {[%clk 0:00:20.3]} 41. Qxa6 {[%clk 0:01:28.3]} 41...
Qb2+ {[%clk 0:00:20.2]} 42. Ke3 {[%clk 0:01:27.2]} 42... Qc3+ {[%clk 0:00:17.3]}
43. Kxe4 {[%clk 0:01:26.5]} 43... Qxg3 {[%clk 0:00:17.4]} 44. Qxb5 {[%clk
0:01:25.4]} 44... Qxh4+ {[%clk 0:00:17.6]} 45. Kd5 {[%clk 0:01:23.2]} 45... Qg5+
{[%clk 0:00:17.3]} 46. Kc6 {[%clk 0:01:20.6]} 46... Qc1+ {[%clk 0:00:16.3]} 47.
Qc5 {[%clk 0:01:18.8]} 47... Qxa3 {[%clk 0:00:16.5]} 48. b5 {[%clk 0:01:19]}
48... Qa8+ {[%clk 0:00:15.6]} 49. Kc7 {[%clk 0:01:18.3]} 49... g5 {[%clk
0:00:12.6]} 50. b6 {[%clk 0:01:17]} 50... g4 {[%clk 0:00:05.3]} 51. b7 {[%clk
0:01:14.5]} 51... Qg8 {[%clk 0:00:04.1]} 52. b8=Q {[%clk 0:01:13.1]} 52... Qxb8+
{[%clk 0:00:03.8]} 53. Kxb8 {[%clk 0:01:12.6]} 53... Kg6 {[%clk 0:00:04.5]} 54.
Kc7 {[%clk 0:01:09.9]} 54... h5 {[%clk 0:00:04.4]} 55. Kd6 {[%clk 0:01:10]}
55... h4 {[%clk 0:00:04.8]} 56. Ke5 {[%clk 0:01:08.2]} 1-0